bitfinex/quotes_ETHUSD_20260103
["timestamp","ask_amount","ask_price","bid_price","bid_amount"]
[1767434079526,2.2533033,3102.6,3102.1,0.001]
[1767434080560,5.47641264,3102.6,3102.1,0.001]
[1767434081061,2.2533033,3102.6,3102.1,0.001]
[1767434084766,5.47642821,3102.6,3102.1,0.001]
[1767434086163,2.2533033,3102.6,3102.1,0.001]
[1767434089439,5.47641141,3102.6,3102.1,0.001]
[1767434090079,2.2533033,3102.6,3102.1,0.001]
[1767434090368,0.002,3102.6,3102.1,2.48422322]
[1767434091369,0.002,3102.6,3102.2,2.48322322]
[1767434092275,0.002,3102.6,3102.3,2.48322322]
[1767434096974,0.002,3102.6,3102.3,5.70662634]
[1767434097174,0.002,3102.6,3102.4,2.48322322]
[1767434098687,2.2513033,3103.1,3102.4,2.48322322]
[1767434098859,3.22535254,3103.2,3102.6,2.48322322]
[1767434099061,0.00280048,3103.2,3102.6,5.7062946]
[1767434099262,0.00280048,3103.2,3102.6,2.48322322]
[1767434100361,2.4494517,3103.2,3102.6,2.48322322]
[1767434100989,3.22258386,3103.1,3102.6,2.48322322]
[1767434101390,3.25479946,3103.1,3102.6,2.48322322]
[1767434101596,3.25479946,3103.1,3102.5,0.89622754]
[1767434101890,2.41443562,3103.0,3102.3,0.00080096]
[1767434102079,2.41443562,3102.8,3102.3,0.00080096]
[1767434102281,2.41443562,3102.6,3102.1,0.001]
[1767434105098,5.63755189,3102.6,3102.1,0.001]
[1767434105890,2.41443562,3102.6,3102.1,0.001]
[1767434107167,3.22384811,3102.7,3102.1,2.52651595]
[1767434107781,0.00080096,3102.7,3102.1,2.52651595]
[1767434109297,0.00080096,3102.7,3102.1,2.29665086]
[1767434109894,0.00080096,3102.7,3102.1,5.52026901]
[1767434111398,0.00080096,3102.7,3102.1,2.29665086]
[1767434111901,0.00080096,3102.7,3102.1,5.52024201]
[1767434112406,0.00080096,3102.7,3102.1,2.29665086]
[1767434113186,0.00280096,3102.7,3102.1,2.29665086]
[1767434113389,2.41443562,3102.6,3102.1,0.001]
[1767434113579,2.44665122,3102.5,3102.1,0.001]
[1767434113776,0.0322156,3102.6,3102.1,0.001]
[1767434113976,2.44665122,3102.6,3102.1,0.001]
[1767434115605,5.66980899,3102.6,3102.1,0.001]
[1767434116380,5.63759339,3102.6,3102.1,0.001]
[1767434117306,2.44665122,3102.5,3102.1,0.001]
[1767434118898,5.66989597,3102.5,3102.1,0.001]
[1767434120879,0.0322156,3102.5,3102.1,0.001]
[1767434121083,0.00280096,3102.7,3102.1,2.29665086]
[1767434121084,0.03501656,3102.7,3102.1,2.29665086]
[1767434121279,3.25803971,3102.7,3102.1,2.29665086]
[1767434122317,4.23236725,3102.7,3102.1,2.29665086]
[1767434122617,0.03501656,3102.7,3102.1,2.29665086]
[1767434122799,0.00280096,3102.7,3102.3,2.29565086]
[1767434123133,0.002,3102.6,3102.3,2.29565086]
[1767434125820,0.002,3102.6,3102.1,2.29665086]
[1767434128018,2.41643562,3102.6,3102.1,0.001]
[1767434128221,2.41443562,3102.4,3102.1,0.001]
[1767434132003,5.58897809,3102.6,3102.1,0.001]
[1767434132201,0.0322156,3102.5,3102.1,0.001]
[1767434133331,2.3638721,3102.4,3102.1,0.001]
[1767434134826,3.25543164,3102.5,3102.1,0.001]
[1767434136329,4.1401449,3102.5,3102.1,0.001]
[1767434137446,9.72723304,3102.5,3102.1,0.001]
[1767434137619,6.4718014,3102.5,3102.1,0.001]
[1767434137817,2.3638721,3102.4,3102.1,0.001]
[1767434138021,2.3960877,3102.3,3102.0,0.001]
[1767434138212,2.60348087,3102.2,3102.0,0.001]
[1767434139105,2.63569647,3102.2,3102.0,0.001]
[1767434140022,0.27182437,3102.2,3102.0,0.001]
[1767434140227,0.23960877,3102.2,3102.0,0.001]
[1767434140911,0.23960877,3102.2,3101.0,0.001]
[1767434140912,0.0970701,3101.7,3101.0,0.001]
[1767434141110,0.00080144,3101.7,3101.1,2.3161618]
[1767434144141,0.00080144,3101.7,3101.2,2.3161618]
[1767434147025,0.03301704,3101.7,3101.2,2.3161618]
[1767434149352,0.03301704,3101.7,3101.3,2.3161618]
[1767434149552,0.00080144,3101.7,3101.3,2.3161618]
[1767434150458,2.3638721,3101.6,3101.0,0.001]
[1767434150632,0.88449842,3101.5,3101.0,0.001]
[1767434151740,2.3638721,3101.4,3101.0,0.001]
[1767434152556,2.3960877,3101.4,3101.0,0.001]
[1767434153938,5.6204592,3101.4,3101.0,0.001]
[1767434154257,3.2565871,3101.4,3101.0,2.3171618]
[1767434155779,4.22969807,3101.4,3101.0,2.3171618]
[1767434156579,4.22969807,3101.4,3101.0,0.001]
[1767434162852,1.00532657,3101.4,3101.0,2.40301878]
[1767434163056,0.0322156,3101.4,3101.0,2.40301878]
[1767434163368,0.0342156,3101.5,3101.0,2.40301878]
[1767434163675,3.25847158,3101.5,3101.0,2.40301878]
[1767434164676,6.48272756,3101.5,3101.0,2.40301878]
[1767434164873,0.87959016,3101.4,3101.0,0.001]
[1767434165253,0.91180576,3101.4,3101.0,0.001]
[1767434165656,4.13621672,3101.4,3101.0,0.001]
[1767434165853,0.91180576,3101.4,3101.0,0.001]
[1767434166871,0.002,3101.5,3101.0,2.40301878]
[1767434167540,5.53700255,3102.0,3101.0,2.40301878]
[1767434167541,0.002,3102.5,3101.7,2.40201878]
[1767434169248,0.002,3102.5,3101.8,2.40201878]
[1767434169450,2.31517403,3102.5,3101.8,2.40201878]
[1767434171174,0.002,3102.5,3101.9,5.62584933]
[1767434171479,0.002,3102.5,3101.6,0.846]
[1767434171480,0.002,3102.5,3102.0,2.40201878]
[1767434175190,0.0028012,3102.2,3102.0,2.40201878]
[1767434175891,0.002,3102.5,3102.1,2.40201878]
[1767434176987,2.31517403,3102.5,3102.0,0.56258151]
[1767434177203,2.31517403,3102.5,3101.9,5.62581286]
[1767434177927,2.31317403,3102.4,3101.8,0.00080128]
[1767434178204,2.31397531,3102.2,3101.4,2.40201878]
[1767434178403,2.81694407,3102.1,3101.4,2.40201878]
[1767434178575,2.81694407,3102.1,3101.3,0.00080152]
[1767434178576,2.31317403,3102.1,3101.3,0.00080152]
[1767434179287,2.31317403,3102.1,3101.3,3.22525413]
[1767434179485,2.31317403,3102.1,3101.4,3.22428798]
[1767434179693,2.31317403,3102.1,3101.4,5.62630676]
[1767434180501,5.5368552,3102.1,3101.4,2.40201878]
[1767434183015,5.5388552,3102.1,3101.4,2.40201878]
[1767434183197,6.41517288,3102.1,3101.4,5.62636154]
[1767434183781,6.41517288,3102.1,3101.4,2.40201878]
[1767434186505,6.41517288,3102.1,3101.4,5.6263654]
[1767434186682,6.41517288,3102.1,3101.5,2.40201878]
[1767434187712,0.002,3102.1,3101.6,2.40201878]
[1767434187905,0.002,3102.1,3101.6,2.4342602]
[1767434190191,0.002,3102.1,3101.7,2.38854898]
[1767434196426,0.002,3102.1,3101.5,3.22420563]
[1767434196804,0.002,3102.1,3101.6,3.22409573]
[1767434197625,0.002,3102.1,3101.5,5.61275052]
[1767434197814,0.002,3102.1,3101.5,6.49653939]
[1767434198947,0.002,3102.1,3101.6,2.38854898]
[1767434200704,0.002,3102.1,3101.6,5.61268145]
[1767434201329,0.002,3102.1,3101.6,2.38854898]
[1767434202041,0.002,3102.1,3101.7,2.38854898]
[1767434203710,0.002,3102.1,3101.8,2.38854898]
[1767434203918,0.002,3102.1,3101.9,2.38854898]
[1767434207041,0.002,3102.1,3101.9,5.61237333]
[1767434207217,0.002,3102.1,3101.9,2.38854898]
[1767434207434,0.002,3102.1,3101.9,5.6123783]
[1767434214680,0.002,3102.1,3102.0,2.38854898]
[1767434216574,0.002,3102.1,3102.0,5.6122756]
[1767434217488,0.002,3102.1,3102.0,2.38854898]
[1767434218365,0.002,3102.1,3101.8,0.001]
[1767434219786,2.25511247,3102.1,3101.8,0.001]
[1767434220281,2.48070384,3102.1,3101.8,0.001]
[1767434221291,0.002,3102.1,3101.8,2.40464527]
[1767434222990,0.002,3102.1,3101.8,5.62857214]
[1767434224399,0.002,3102.1,3101.8,2.40464527]
[1767434224702,0.002,3102.1,3101.8,5.6285789]
[1767434235817,0.002,3102.1,3101.9,2.40364527]
[1767434238223,0.002,3102.1,3101.9,5.62746832]
[1767434238636,0.002,3102.1,3101.9,2.40364527]
[1767434238959,0.002,3102.1,3101.9,5.62746552]
[1767434240735,0.002,3102.1,3102.0,2.40364527]
[1767434241468,0.002,3102.5,3102.0,2.40364527]
[1767434243519,0.002,3102.5,3102.0,5.62735076]
[1767434244963,0.002,3102.5,3102.0,2.40364527]
[1767434245271,0.002,3102.5,3101.9,4.10902043]
[1767434245445,2.25511247,3102.5,3101.9,0.88523881]
[1767434245649,2.25511247,3102.5,3101.9,4.10906123]
[1767434247779,2.25511247,3102.5,3101.9,9.73653705]
[1767434248082,2.25511247,3102.5,3102.0,0.97383384]
[1767434248288,0.002,3102.5,3102.0,0.97383384]
[1767434250466,0.002,3102.5,3101.9,5.62746769]
[1767434254684,0.002,3102.5,3101.9,2.40364527]
[1767434254998,0.002,3102.5,3101.9,5.62746541]
[1767434255579,2.36656243,3102.5,3101.9,5.62746541]
[1767434255757,2.36656243,3102.5,3101.9,3.22382014]
[1767434255953,2.36656243,3102.5,3101.8,3.22573584]
[1767434256154,5.58977327,3102.5,3101.8,4.10170966]
[1767434256356,2.36456243,3102.4,3101.8,4.10170966]
[1767434263088,2.36456243,3102.4,3101.8,9.63562665]
[1767434263290,0.002,3102.5,3101.9,2.34222081]
[1767434263473,0.002,3102.5,3101.9,2.30998251]
[1767434263689,0.002,3102.5,3102.0,2.30998251]
[1767434265392,0.002,3102.5,3102.0,5.53468284]
[1767434266567,0.002,3102.5,3102.1,2.30998251]
[1767434267690,0.002,3102.5,3102.1,5.53354701]
[1767434268393,0.002,3102.5,3102.2,2.30998251]
[1767434268597,0.002,3102.5,3102.3,0.87571697]
[1767434272795,0.002,3102.5,3102.2,2.30998251]
[1767434273179,0.002,3102.5,3102.0,5.53465958]
[1767434274105,0.002,3102.5,3102.0,2.31098251]
[1767434274801,0.002,3102.5,3102.2,2.30998251]
[1767434279913,0.002,3102.5,3102.2,5.53349232]
[1767434280313,0.002,3102.5,3102.2,2.30998251]
[1767434282218,0.002,3102.5,3102.2,2.86343875]
[1767434282516,0.002,3102.5,3102.2,0.55345624]
[1767434284125,0.002,3102.5,3102.2,3.77697403]
[1767434284899,0.002,3102.5,3102.1,0.001]
[1767434286229,0.002,3102.5,3102.1,3.22460582]
[1767434288910,0.002,3102.5,3102.1,5.65979116]
[1767434289925,0.002,3102.6,3102.2,2.43518534]
[1767434291031,0.002,3102.6,3102.2,5.65870063]
[1767434291215,0.002,3102.6,3102.2,6.54714308]
[1767434292536,0.002,3102.6,3102.3,2.43518534]
[1767434293432,0.002,3102.6,3102.4,2.43518534]
[1767434295438,0.00071076,3102.6,3102.4,2.43518534]
[1767434300359,0.00071076,3102.6,3102.4,5.65848997]
[1767434300527,0.00071076,3102.6,3102.5,0.565849]
[1767434301128,0.00071076,3102.6,3102.5,0.59808107]
[1767434301328,0.002,3102.8,3102.5,3.82128669]
[1767434301861,0.002,3102.8,3102.5,3.78905462]
[1767434302257,0.002,3102.8,3102.5,0.565849]
[1767434302429,0.002,3102.8,3102.5,3.78904191]
[1767434303252,0.002,3102.8,3102.6,0.94475281]
[1767434307480,0.002,3102.8,3102.6,3.37993815]
[1767434309775,0.002,3102.8,3102.6,6.60303459]
[1767434311469,0.00280048,3103.2,3102.8,2.3731454]
[1767434313779,0.00280048,3103.2,3102.9,2.3731454]
[1767434314895,2.33632784,3103.0,3102.5,0.001]
[1767434315110,2.72211281,3102.8,3102.3,0.00080104]
[1767434315391,2.33632784,3102.9,3102.3,0.00080104]
[1767434315959,5.55918385,3102.9,3102.3,0.00080104]
[1767434316160,8.78203986,3102.9,3102.3,0.00080104]
[1767434316800,5.55918385,3102.9,3102.3,0.00080104]
[1767434316992,0.87818838,3102.8,3102.3,0.00080104]
[1767434317577,3.21451622,3102.8,3102.3,0.00080104]
[1767434317903,3.22299932,3102.7,3102.3,0.00080104]
[1767434322604,2.33632784,3102.6,3102.1,0.001]
[1767434322815,0.87823265,3102.5,3102.1,0.001]
[1767434323875,3.22331098,3102.4,3102.1,0.001]
[1767434324412,3.22331098,3102.4,3102.3,0.001]
[1767434324905,3.22331098,3102.4,3102.1,0.001]
[1767434329217,4.1014761,3102.5,3102.1,0.001]
[1767434329516,0.96609253,3102.4,3102.1,0.001]
[1767434332231,4.18941955,3102.4,3102.1,0.001]
[1767434334831,0.96609253,3102.4,3102.1,0.001]
[1767434337414,4.18941494,3102.4,3102.1,0.001]
[1767434337822,0.96609253,3102.4,3102.1,0.001]
[1767434341541,0.96809253,3102.4,3102.1,2.48593267]
[1767434341712,0.002,3102.4,3102.1,2.48593267]
[1767434345540,0.002,3102.4,3102.1,0.001]
[1767434350562,0.002,3102.4,3102.0,0.001]
[1767434350563,2.42055095,3102.2,3101.3,2.48573419]
[1767434351447,2.42055095,3102.2,3102.0,0.001]
[1767434351617,2.41974959,3102.0,3101.3,0.0008016]
[1767434351946,2.41974959,3101.6,3101.0,3.22576293]
[1767434352147,0.0008016,3101.7,3101.0,5.7106956]
[1767434352337,0.0008016,3101.7,3101.0,2.48593267]
[1767434352538,3.22484003,3101.7,3101.0,2.48593267]
[1767434352739,5.64458962,3101.7,3101.0,2.48593267]
[1767434353048,0.88685656,3101.6,3101.0,2.48593267]
[1767434353247,0.88685656,3101.6,3101.0,5.71068519]
[1767434353847,0.88685656,3101.6,3101.0,2.48593267]
[1767434355023,4.11102085,3101.6,3101.0,2.48593267]
[1767434355320,3.22487519,3101.7,3101.2,2.48593267]
[1767434357126,0.0008016,3101.7,3101.2,2.48593267]
[1767434358448,2.42055119,3101.7,3101.2,0.001]
[1767434359554,3.22414237,3101.6,3101.2,0.001]
[1767434361743,5.64462014,3101.7,3101.2,0.001]
[1767434361951,0.0008016,3101.7,3101.2,0.001]
[1767434362161,0.0008016,3101.7,3101.2,2.48593267]
[1767434366428,0.0028016,3101.7,3101.2,2.48593267]
[1767434366761,2.42255119,3101.7,3101.2,0.001]
[1767434366962,2.90397967,3101.6,3101.2,0.001]
[1767434367860,0.48423008,3101.6,3101.2,0.001]
[1767434368064,0.0028016,3101.7,3101.2,0.001]
[1767434368442,2.42255119,3101.7,3101.2,0.001]
[1767434373145,3.22414237,3101.6,3101.2,0.001]
[1767434374974,2.36196907,3101.5,3101.2,0.001]
[1767434375193,3.22414237,3101.6,3100.8,0.0018012]
[1767434375194,2.36196907,3101.3,3100.8,0.0018012]
[1767434377270,3.22455823,3101.2,3100.8,0.0018012]
[1767434380584,3.22435029,3101.4,3100.8,2.40877173]
[1767434381580,6.44870058,3101.4,3100.8,2.40877173]
[1767434382092,0.002,3101.3,3100.8,2.40877173]
[1767434392576,3.22645426,3101.3,3100.8,2.40877173]
[1767434392778,4.10773132,3101.3,3100.8,2.40877173]
[1767434395512,6.46970039,3101.3,3100.8,0.0018012]
[1767434400788,0.002,3101.3,3100.8,2.2625249]
[1767434400989,0.002,3101.3,3101.0,2.2607237]
[1767434401714,0.002,3101.3,3100.8,2.2625249]
[1767434404111,0.002,3101.3,3100.8,5.48749666]
[1767434404315,0.002,3101.3,3100.8,2.2625249]
[1767434412123,0.002,3101.3,3100.9,2.2607237]
[1767434412736,0.002,3101.3,3101.0,3.2247662]
[1767434413111,0.002,3101.3,3100.9,5.4855443]
[1767434414306,0.002,3101.3,3100.9,2.2607237]
[1767434414629,0.002,3101.3,3100.8,3.22673436]
[1767434414931,0.002,3101.3,3100.8,0.0018012]
[1767434415626,0.002,3101.3,3100.9,2.2607237]
[1767434418135,0.002,3101.3,3100.9,5.48556416]
[1767434418711,0.002,3101.3,3100.9,2.2607237]
[1767434419932,0.002,3101.3,3100.9,5.4855824]
[1767434422943,0.002,3101.3,3100.9,2.2607237]
[1767434423911,0.002,3101.3,3100.8,3.22673837]
[1767434435458,2.4183246,3101.3,3100.8,3.22673837]
[1767434435662,2.98259221,3101.3,3100.8,0.0018012]
[1767434454471,6.20706894,3101.3,3100.8,0.0018012]
[1767434460093,0.56626761,3101.3,3100.8,2.36609593]
[1767434460245,0.002,3101.3,3100.8,2.36609593]
[1767434462078,2.26211493,3101.3,3100.8,0.0018012]
[1767434462377,2.26011493,3101.2,3100.8,0.0018012]
[1767434463878,5.48468934,3101.2,3100.8,0.0018012]
[1767434465788,3.22457441,3101.2,3100.8,0.0018012]
[1767434465993,3.95440373,3101.1,3100.8,0.0018012]
[1767434467904,0.72970469,3101.1,3100.8,0.0018012]
[1767434468399,3.95438623,3101.1,3100.8,0.0018012]
[1767434469801,3.95638623,3101.1,3100.8,0.0018012]
[1767434473637,2.26011493,3101.0,3100.2,2.36429473]
[1767434473839,2.26011493,3101.0,3099.9,0.001]
[1767434473840,2.26011493,3100.7,3099.9,0.001]
[1767434473997,2.26011493,3100.7,3099.9,3.22689523]
[1767434474325,2.26011493,3100.7,3099.9,0.001]
[1767434474690,2.26011493,3100.7,3099.9,3.22690026]
[1767434475110,2.26011493,3100.7,3099.9,0.001]
[1767434475517,2.26011493,3100.5,3099.9,0.001]
[1767434477632,6.45036444,3100.6,3099.9,0.001]
[1767434477633,2.26011493,3100.3,3099.9,0.001]
[1767434477936,2.26011493,3100.3,3100.0,0.001]
[1767434478535,2.26011493,3100.3,3099.7,3.22611096]
[1767434478734,2.26011493,3100.3,3099.6,0.001]
[1767434478735,2.26011493,3100.3,3099.6,3.22722273]
[1767434479230,2.26011493,3100.3,3099.6,3.25948495]
[1767434479231,2.26011493,3100.2,3099.6,3.25948495]
[1767434479439,2.26011493,3100.2,3099.6,3.22722273]
[1767434480033,2.26011493,3100.2,3099.6,0.001]
[1767434483333,2.26011493,3100.1,3099.6,0.001]
[1767434484918,2.26011493,3099.9,3099.6,0.001]
[1767434486012,2.26011493,3099.7,3099.6,0.001]
[1767434488052,2.26011493,3099.7,3099.5,0.001]
[1767434488417,2.26011493,3099.7,3098.9,3.22691417]
[1767434488418,2.26011493,3099.6,3098.9,3.22691417]
[1767434488632,2.26011493,3099.6,3098.9,4.88803025]
[1767434488820,2.26011493,3099.6,3098.9,3.22693437]
[1767434489161,2.26011493,3099.6,3098.8,0.001]
[1767434489925,2.26002919,3099.4,3098.8,0.001]
[1767434491954,2.49827757,3099.2,3098.8,0.001]
[1767434494177,3.22622273,3099.6,3098.8,0.001]
[1767434494333,3.22622273,3099.6,3098.8,1.66209588]
[1767434494535,3.79867276,3099.6,3098.8,1.66209588]
[1767434494855,2.49827757,3099.5,3098.8,1.66209588]
[1767434495365,2.49827757,3099.5,3098.8,0.001]
[1767434495764,2.49827757,3099.5,3098.8,1.66209588]
[1767434497143,5.72460686,3099.5,3098.8,1.66209588]
[1767434497348,0.62970569,3099.4,3098.8,1.66209588]
[1767434497746,3.12798326,3099.4,3098.8,1.66209588]
[1767434498049,2.49827757,3099.4,3098.8,4.88905675]
[1767434500592,2.49827757,3099.4,3098.8,3.22796087]
[1767434500787,2.49827757,3099.4,3098.8,0.001]
[1767434501491,5.7247205,3099.4,3098.8,0.001]
[1767434501894,2.49827757,3099.3,3098.8,0.001]
[1767434502094,3.07074962,3099.3,3098.8,0.001]
[1767434502780,6.2973625,3099.3,3098.8,0.001]
[1767434503290,2.49827757,3099.2,3098.8,0.001]
[1767434505704,2.49827757,3099.7,3098.8,0.001]
[1767434507213,2.49827757,3099.5,3098.8,4.88915151]
[1767434507389,3.39334443,3099.5,3098.8,4.88915151]
[1767434509095,3.39334443,3099.5,3098.7,0.001]
[1767434509096,2.49827757,3099.2,3098.7,0.001]
[1767434511182,2.49827757,3099.0,3098.7,0.001]
[1767434511385,2.49827757,3099.0,3098.5,0.00080072]
[1767434511595,2.49827757,3098.8,3098.5,0.00080072]
[1767434513710,2.49827757,3098.8,3098.5,0.00280072]
[1767434515805,5.72511917,3099.1,3098.5,0.00280072]
[1767434516323,2.49827757,3099.0,3098.5,0.00280072]
[1767434517705,5.72515266,3099.0,3098.5,0.00280072]
[1767434518423,2.49827757,3099.4,3098.5,1.6638966]
[1767434518628,2.49827757,3099.4,3098.7,1.66109588]
[1767434520207,5.72472086,3099.4,3098.7,4.88820926]
[1767434520523,2.49827757,3099.4,3098.8,1.66109588]
[1767434520705,0.001,3099.5,3098.8,1.66109588]
[1767434520890,0.001,3099.5,3098.9,2.42266907]
[1767434521091,2.34724511,3099.5,3098.9,2.42266907]
[1767434521698,5.5735816,3099.5,3098.9,2.42266907]
[1767434521931,5.5735816,3099.5,3098.7,4.88820926]
[1767434522099,2.34724511,3099.5,3098.7,8.11536903]
[1767434522812,2.34724511,3099.5,3098.8,1.66109588]
[1767434522813,0.001,3099.5,3098.8,1.66109588]
[1767434524433,2.34624511,3099.9,3099.2,1.66109588]
[1767434524632,0.002,3100.2,3099.6,1.66109588]
[1767434525033,0.002,3100.2,3099.6,4.38861851]
[1767434525210,2.34804599,3100.8,3100.1,1.66109588]
[1767434525939,0.00180088,3100.8,3100.1,1.66109588]
[1767434527008,2.34804599,3100.8,3100.2,3.22559834]
[1767434528737,2.34804599,3100.8,3100.2,6.45119668]
[1767434528918,2.34804599,3100.8,3100.2,7.26242594]
[1767434529122,2.34804599,3100.8,3100.2,4.0368276]
[1767434529625,2.34804599,3100.8,3100.2,7.26242594]
[1767434529828,2.34804599,3100.8,3100.2,4.0368276]
[1767434530514,0.00180088,3100.8,3100.3,1.66109588]
[1767434530712,0.00180088,3100.8,3100.3,2.63815666]
[1767434530942,0.00180088,3100.8,3100.4,4.88640372]
[1767434531132,0.00180088,3100.8,3100.5,1.66109588]
[1767434533241,0.00180088,3100.8,3100.6,3.22518222]
[1767434533421,0.00180088,3100.8,3100.6,4.8862781]
[1767434533616,0.00180088,3100.8,3100.7,0.81115606]
[1767434533822,0.002,3101.1,3100.7,0.81115606]
[1767434536345,0.002,3101.1,3100.6,4.8862781]
[1767434536708,0.002,3101.1,3100.6,3.22518222]
[1767434538142,2.34824511,3101.1,3100.5,3.22528624]
[1767434538352,2.34824511,3101.1,3100.4,0.00080096]
[1767434541735,2.34624511,3100.9,3100.4,0.00080096]
[1767434541914,2.34624511,3100.8,3100.4,0.00080096]
[1767434543649,0.0028016,3101.7,3100.8,1.66109588]
[1767434543945,0.0028016,3101.7,3100.8,1.66189716]
[1767434543946,2.34824511,3101.5,3100.8,1.66189716]
[1767434544149,2.34824511,3101.5,3100.8,0.48949882]
[1767434546249,0.002,3100.9,3100.8,3.71447302]
[1767434546419,2.34624511,3101.4,3100.8,3.71447302]
[1767434550843,2.44329453,3101.3,3100.8,0.00080128]
[1767434551729,2.44329453,3101.3,3100.8,3.22576706]
[1767434552855,2.44329453,3101.3,3100.8,0.00080128]
[1767434559439,5.66775914,3101.3,3100.8,0.00080128]
[1767434559758,2.44329453,3101.3,3100.8,0.00080128]
[1767434562355,2.44329453,3101.3,3100.8,0.00180128]
[1767434562885,2.44529453,3101.3,3100.8,0.00180128]
[1767434564355,2.44529453,3101.3,3100.8,1.17046656]
[1767434565883,2.44529453,3101.3,3100.9,3.22487019]
[1767434566085,2.44529453,3101.3,3100.8,1.17046656]
[1767434566086,2.44529453,3101.3,3100.8,4.39541675]
[1767434571986,0.002,3101.3,3100.8,4.39541675]
[1767434573389,0.002,3101.3,3100.8,6.05651263]
[1767434573588,0.002,3101.3,3100.9,0.64112504]
[1767434574193,2.44529453,3101.3,3100.9,0.60887634]
[1767434580698,2.44529453,3101.3,3100.9,3.8337405]
[1767434580897,2.44529453,3101.3,3100.9,0.60887634]
[1767434581098,2.42074428,3101.0,3100.2,1.66109588]
[1767434581418,2.42074428,3101.0,3100.3,4.07145096]
[1767434581786,2.42074428,3101.0,3100.4,0.84780096]
[1767434581989,5.64554598,3101.0,3100.4,0.00180096]
[1767434582197,5.64554598,3101.0,3100.4,0.84780096]
[1767434582516,5.64554598,3101.0,3100.4,1.42123574]
[1767434583434,2.42074428,3100.9,3100.4,1.42123574]
[1767434583924,2.42074428,3100.8,3100.4,0.00180096]
[1767434586015,5.64580392,3100.8,3100.4,0.00180096]
[1767434586217,5.64580392,3100.8,3100.0,0.001]
[1767434586218,2.42074428,3100.7,3100.0,0.001]
[1767434586416,2.42074428,3100.6,3100.0,0.001]
[1767434587803,5.64603052,3100.5,3100.4,0.001]
[1767434589094,2.42074428,3100.4,3100.0,0.001]
[1767434591040,2.42074428,3100.2,3100.0,0.001]
[1767434593655,5.64617926,3100.4,3100.0,0.001]
[1767434594520,2.42074428,3100.3,3100.0,0.001]
[1767434595950,2.42074428,3100.2,3100.0,0.001]
[1767434598874,5.64637257,3100.2,3100.0,0.001]
[1767434599171,2.42074428,3100.1,3100.0,0.001]
[1767434600278,5.64644667,3100.1,3100.0,0.001]
[1767434600578,2.42074428,3100.1,3100.0,0.001]
[1767434600742,5.6462848,3100.3,3100.0,0.001]
[1767434601770,2.42074428,3100.2,3100.0,0.001]
[1767434605375,2.42074428,3100.1,3100.0,0.001]
[1767434605584,2.42074428,3100.1,3099.5,0.001]
[1767434607386,2.42074428,3099.9,3099.5,0.001]
[1767434608590,5.64675886,3099.8,3099.5,0.001]
[1767434609295,2.42074428,3099.7,3099.5,0.001]
[1767434609502,2.42074428,3099.6,3099.5,0.001]
[1767434611364,5.64696701,3099.6,3099.5,0.001]
[1767434611572,2.48320118,3099.5,3099.1,0.001]
[1767434613317,5.7096321,3099.4,3099.1,0.001]
[1767434613614,2.48320118,3099.4,3099.1,0.001]
[1767434615094,5.70966278,3099.4,3099.1,0.001]
[1767434615826,3.22601489,3099.8,3099.1,1.66589684]
[1767434615979,3.22601489,3099.8,3099.2,1.83148652]
[1767434616184,3.22601489,3099.8,3099.2,1.66489684]
[1767434617511,3.22745201,3100.4,3099.4,1.66489684]
[1767434617512,2.48320118,3100.2,3099.4,1.66489684]
[1767434618495,2.48320118,3100.2,3099.5,1.66489684]
[1767434618695,2.48320118,3100.2,3099.4,0.846]
[1767434618884,2.48320118,3100.0,3099.4,0.846]
[1767434620191,2.48320118,3100.0,3099.4,4.07241035]
[1767434621100,5.71062175,3100.4,3099.7,1.66489684]
[1767434621289,2.48520118,3100.4,3099.7,1.66489684]
[1767434621899,2.48520118,3100.4,3099.7,4.89097404]
[1767434622099,2.48520118,3100.4,3099.8,1.66389684]
[1767434622100,0.002,3100.4,3099.8,1.66389684]
[1767434623895,0.002,3100.4,3099.9,6.45182102]
[1767434624100,0.002,3100.4,3100.0,1.66389684]
[1767434625597,0.002,3100.4,3099.9,3.22591051]
[1767434626324,2.48520118,3100.4,3099.9,3.22591051]
[1767434627517,2.48520118,3100.4,3099.9,4.11866417]
[1767434634740,2.48520118,3100.4,3099.9,3.22591051]
[1767434636316,2.48520118,3100.4,3099.7,3.22611792]
[1767434636842,2.48320118,3100.3,3099.4,1.66389684]
[1767434637019,2.48320118,3100.3,3099.5,3.22625968]
[1767434637225,6.45281272,3100.4,3099.3,3.22652669]
[1767434637226,2.48320118,3100.1,3099.3,3.22649625]
[1767434637814,2.48320118,3100.1,3099.2,3.22662074]
[1767434638622,2.48320118,3099.9,3099.8,0.001]
[1767434640451,5.70911169,3099.9,3099.8,0.001]
[1767434640627,6.6025934,3099.9,3099.8,0.001]
[1767434641743,6.6025934,3099.9,3099.1,0.001]
[1767434641744,2.37246057,3099.8,3099.1,0.001]
[1767434642454,2.37246057,3099.7,3099.1,0.001]
[1767434644493,0.57106075,3100.2,3099.1,0.001]
[1767434644494,2.37246057,3100.3,3099.3,1.66389684]
[1767434644658,5.59801872,3100.3,3099.3,1.66389684]
[1767434644836,5.59801872,3100.3,3099.5,1.66389684]
[1767434645239,8.82357687,3100.3,3099.5,1.66389684]
[1767434645554,2.37246057,3100.2,3099.5,1.66389684]
[1767434646564,6.4511163,3100.3,3099.5,1.66389684]
[1767434646565,5.59816296,3100.1,3099.5,1.66389684]
[1767434649473,5.59816296,3100.1,3099.5,2.23752872]
[1767434650168,5.59816296,3100.1,3099.5,0.57363188]
[1767434650169,2.37246057,3100.0,3099.5,0.57363188]
[1767434650353,2.37246057,3100.0,3099.3,5.73642359]
[1767434650544,2.37246057,3100.0,3099.3,2.50989684]
[1767434650771,2.37246057,3100.0,3099.4,3.22635582]
[1767434650977,2.37246057,3100.0,3099.4,4.89025266]
[1767434651507,5.59827306,3100.0,3099.4,4.89025266]
[1767434652188,5.59827306,3100.0,3099.3,4.07250143]
[1767434652809,5.59827306,3100.0,3099.3,3.22650143]
[1767434652977,5.59827306,3100.0,3099.3,4.31087381]
[1767434653307,2.37246057,3099.9,3099.3,4.31087381]
[1767434653496,2.37246057,3099.9,3099.4,3.22642175]
[1767434654278,2.37246057,3099.9,3099.4,0.001]
[1767434655209,2.37246057,3099.8,3099.4,0.001]